[Event "FIDE U16 Olympiad_boards_81-124"]
[Site "Eindhoven, Netherlands"]
[Date "2023.08.14"]
[Round "3.32"]
[White "Thornton, Hayley"]
[Black "Kaewwattha, Natrada"]
[Result "1/2-1/2"]
[TimeControl "45min+10sec"]
[WhiteElo "1047"]
[BlackElo "1414"]

1. e4 {[%clk 00:45:18]} {[%emt 00:00:03]} c6 {[%clk 00:45:19]} {[%emt
00:00:01]} 2. d4 {[%clk 00:45:26]} {[%emt 00:00:02]} d5 {[%clk 00:45:27]}
{[%emt 00:00:02]} 3. Nc3 {[%clk 00:45:34]} {[%emt 00:00:02]} dxe4 {[%clk
00:45:36]} {[%emt 00:00:01]} 4. Nxe4 {[%clk 00:45:43]} {[%emt 00:00:01]} Bf5
{[%clk 00:45:44]} {[%emt 00:00:02]} 5. Ng3 {[%clk 00:45:52]} {[%emt 00:00:01]}
Bg6 {[%clk 00:45:54]} 6. h4 {[%clk 00:46:02]} h6 {[%clk 00:46:00]} {[%emt
00:00:03]} 7. h5 {[%clk 00:46:11]} {[%emt 00:00:02]} Bh7 {[%clk 00:46:09]} 8.
Nf3 {[%clk 00:46:19]} {[%emt 00:00:01]} Nd7 {[%clk 00:45:59]} {[%emt 00:00:19]}
9. Bd3 {[%clk 00:46:28]} {[%emt 00:00:03]} Bxd3 {[%clk 00:45:59]} {[%emt
00:00:09]} 10. Qxd3 {[%clk 00:46:36]} {[%emt 00:00:02]} e6 {[%clk 00:46:07]}
{[%emt 00:00:02]} 11. Bd2 {[%clk 00:46:43]} {[%emt 00:00:03]} Ngf6 {[%clk
00:45:23]} {[%emt 00:00:54]} 12. O-O-O {[%clk 00:45:38]} {[%emt 00:01:16]} Be7
{[%clk 00:43:41]} {[%emt 00:01:51]} 13. Ne4 {[%clk 00:44:54]} {[%emt 00:00:55]}
Nxe4 {[%clk 00:43:45]} {[%emt 00:00:05]} 14. Qxe4 {[%clk 00:45:02]} {[%emt
00:00:02]} Nf6 {[%clk 00:43:53]} {[%emt 00:00:02]} 15. Qe2 {[%clk 00:43:58]}
{[%emt 00:01:13]} Qb6 {[%clk 00:40:00]} {[%emt 00:04:03]} 16. Be3 {[%clk
00:40:07]} {[%emt 00:04:02]} Qa5 {[%clk 00:38:47]} {[%emt 00:01:22]} 17. a3
{[%clk 00:37:06]} {[%emt 00:03:12]} Nxh5 {[%clk 00:25:52]} {[%emt 00:13:05]} 18.
Ne5 {[%clk 00:31:02]} {[%emt 00:06:14]} Nf6 {[%clk 00:24:45]} {[%emt 00:01:17]}
19. Rd3 {[%clk 00:29:41]} {[%emt 00:01:31]} Rc8 {[%clk 00:16:23]} {[%emt
00:08:32]} 20. Rb3 {[%clk 00:26:16]} {[%emt 00:03:35]} Qc7 {[%clk 00:13:53]}
{[%emt 00:02:40]} 21. Bf4 {[%clk 00:24:52]} {[%emt 00:01:34]} Bd6 {[%clk
00:13:44]} {[%emt 00:00:18]} 22. Rg3 {[%clk 00:20:09]} {[%emt 00:04:53]} Nd5
{[%clk 00:09:19]} {[%emt 00:04:36]} 23. Qg4 {[%clk 00:15:12]} {[%emt 00:05:05]}
Nxf4 {[%clk 00:07:09]} {[%emt 00:02:22]} 24. Qxf4 {[%clk 00:15:18]} {[%emt
00:00:04]} f6 {[%clk 00:06:34]} {[%emt 00:00:45]} 25. Qg4 {[%clk 00:14:22]}
{[%emt 00:01:06]} fxe5 {[%clk 00:05:31]} {[%emt 00:01:12]} 26. Qxe6+ {[%clk
00:14:14]} {[%emt 00:00:18]} Be7 {[%clk 00:03:56]} {[%emt 00:01:46]} 27. Rxg7
{[%clk 00:14:12]} {[%emt 00:00:12]} Qd7 {[%clk 00:02:54]} {[%emt 00:01:13]} 28.
Rg8+ {[%clk 00:12:46]} {[%emt 00:01:35]} Rxg8 {[%clk 00:03:02]} {[%emt
00:00:02]} 29. Qxg8+ {[%clk 00:12:54]} {[%emt 00:00:02]} Bf8 {[%clk 00:03:11]}
{[%emt 00:00:01]} 30. Rxh6 {[%clk 00:12:52]} {[%emt 00:00:13]} Qg7 {[%clk
00:02:08]} {[%emt 00:01:13]} 31. Qe6+ {[%clk 00:12:15]} {[%emt 00:00:46]} Kd8
{[%clk 00:02:08]} {[%emt 00:00:10]} 32. Rf6 {[%clk 00:09:56]} {[%emt 00:02:29]}
Rc7 {[%clk 00:01:45]} {[%emt 00:00:33]} 33. Qxe5 {[%clk 00:06:44]} {[%emt
00:03:22]} Qe7 {[%clk 00:00:59]} {[%emt 00:00:56]} 34. Qxe7+ {[%clk 00:06:09]}
{[%emt 00:00:45]} Kxe7 {[%clk 00:00:49]} {[%emt 00:00:20]} 35. Rf3 {[%clk
00:05:21]} {[%emt 00:00:59]} Bh6+ {[%clk 00:00:57]} {[%emt 00:00:02]} 36. Kd1
{[%clk 00:05:29]} {[%emt 00:00:02]} Rd7 {[%clk 00:01:03]} {[%emt 00:00:04]} 37.
c3 {[%clk 00:05:34]} {[%emt 00:00:04]} Ke6 {[%clk 00:00:39]} {[%emt 00:00:34]}
38. Ke2 {[%clk 00:04:41]} {[%emt 00:01:03]} Bc1 {[%clk 00:00:40]} {[%emt
00:00:10]} 39. g4 {[%clk 00:03:00]} {[%emt 00:01:51]} Rg7 {[%clk 00:00:46]}
{[%emt 00:00:03]} 40. Rg3 {[%clk 00:00:59]} {[%emt 00:02:11]} Bxb2 {[%clk
00:00:39]} {[%emt 00:00:17]} 41. f4 {[%clk 00:00:55]} {[%emt 00:00:14]} Bxa3
{[%clk 00:00:40]} {[%emt 00:00:10]} 42. f5+ {[%clk 00:01:02]} {[%emt 00:00:02]}
Kf6 {[%clk 00:00:41]} {[%emt 00:00:09]} 43. Ke3 {[%clk 00:01:05]} {[%emt
00:00:08]} Bd6 {[%clk 00:00:41]} {[%emt 00:00:10]} 44. Rg1 {[%clk 00:00:58]}
{[%emt 00:00:17]} Kg5 {[%clk 00:00:36]} {[%emt 00:00:15]} 45. Rf1 {[%clk
00:00:30]} {[%emt 00:00:38]} Re7+ {[%clk 00:00:41]} 46. Kf3 {[%clk 00:00:30]}
Rh7 {[%clk 00:00:41]} 1/2-1/2

[Event "FIDE U16 Olympiad_boards_81-124"]
[Site "Eindhoven, Netherlands"]
[Date "2023.08.14"]
[Round "3.33"]
[White "Coetsee, Dewald"]
[Black "Kannappan, Thanneermalai"]
[Result "1-0"]
[TimeControl "45min+10sec"]
[WhiteElo "1276"]
[BlackElo "1713"]

1. e4 {[%clk 00:45:13]} {[%emt 00:00:07]} c5 {[%clk 00:45:19]} {[%emt
00:00:01]} 2. Nf3 {[%clk 00:45:21]} {[%emt 00:00:02]} d6 {[%clk 00:45:28]} 3.
d4 {[%clk 00:45:26]} {[%emt 00:00:05]} cxd4 {[%clk 00:45:34]} {[%emt 00:00:05]}
4. Nxd4 {[%clk 00:45:33]} {[%emt 00:00:02]} Nf6 {[%clk 00:45:42]} {[%emt
00:00:01]} 5. Nc3 {[%clk 00:45:41]} {[%emt 00:00:03]} g6 {[%clk 00:45:51]} 6.
Be3 {[%clk 00:45:30]} {[%emt 00:00:21]} Bg7 {[%clk 00:46:00]} 7. f3 {[%clk
00:45:39]} {[%emt 00:00:01]} Nc6 {[%clk 00:46:08]} {[%emt 00:00:03]} 8. Qd2
{[%clk 00:45:29]} {[%emt 00:00:20]} O-O {[%clk 00:46:14]} {[%emt 00:00:03]} 9.
O-O-O {[%clk 00:45:33]} {[%emt 00:00:06]} d5 {[%clk 00:46:23]} {[%emt
00:00:02]} 10. exd5 {[%clk 00:45:32]} {[%emt 00:00:10]} Nxd5 {[%clk 00:46:31]}
{[%emt 00:00:02]} 11. Nxc6 {[%clk 00:45:35]} {[%emt 00:00:07]} bxc6 {[%clk
00:46:40]} {[%emt 00:00:01]} 12. Bd4 {[%clk 00:45:39]} {[%emt 00:00:06]} Bxd4
{[%clk 00:46:47]} {[%emt 00:00:03]} 13. Qxd4 {[%clk 00:45:47]} {[%emt
00:00:02]} Qb6 {[%clk 00:46:56]} {[%emt 00:00:02]} 14. Nxd5 {[%clk 00:44:52]}
{[%emt 00:01:05]} cxd5 {[%clk 00:47:03]} {[%emt 00:00:02]} 15. Qxb6 {[%clk
00:44:44]} {[%emt 00:00:17]} axb6 {[%clk 00:47:12]} {[%emt 00:00:02]} 16. a3
{[%clk 00:44:52]} {[%emt 00:00:02]} Rd8 {[%clk 00:43:37]} {[%emt 00:03:45]} 17.
Bb5 {[%clk 00:43:32]} {[%emt 00:01:30]} Bb7 {[%clk 00:39:57]} {[%emt 00:03:50]}
18. Rhe1 {[%clk 00:43:31]} {[%emt 00:00:11]} e6 {[%clk 00:37:11]} {[%emt
00:02:56]} 19. Rd4 {[%clk 00:42:34]} {[%emt 00:01:07]} Rac8 {[%clk 00:36:27]}
{[%emt 00:00:55]} 20. Kb1 {[%clk 00:38:51]} {[%emt 00:03:54]} Kf8 {[%clk
00:31:51]} {[%emt 00:04:45]} 21. f4 {[%clk 00:38:01]} {[%emt 00:01:00]} Rc5
{[%clk 00:29:04]} {[%emt 00:02:58]} 22. a4 {[%clk 00:35:57]} {[%emt 00:02:14]}
Rdc8 {[%clk 00:26:23]} {[%emt 00:02:50]} 23. Re2 {[%clk 00:35:10]} {[%emt
00:00:57]} Ke7 {[%clk 00:25:25]} {[%emt 00:01:08]} 24. g4 {[%clk 00:34:05]}
{[%emt 00:01:15]} Bc6 {[%clk 00:21:27]} {[%emt 00:04:08]} 25. Bd3 {[%clk
00:26:21]} {[%emt 00:07:54]} Bb7 {[%clk 00:16:30]} {[%emt 00:05:07]} 26. g5
{[%clk 00:25:48]} {[%emt 00:00:43]} h6 {[%clk 00:15:04]} {[%emt 00:01:36]} 27.
h4 {[%clk 00:24:20]} {[%emt 00:01:37]} Kd6 {[%clk 00:13:40]} {[%emt 00:01:35]}
28. b3 {[%clk 00:19:48]} {[%emt 00:04:43]} hxg5 {[%clk 00:11:51]} {[%emt
00:01:58]} 29. hxg5 {[%clk 00:19:54]} {[%emt 00:00:03]} Rh8 {[%clk 00:11:18]}
{[%emt 00:00:45]} 30. Kb2 {[%clk 00:19:08]} {[%emt 00:00:55]} Rh4 {[%clk
00:09:05]} {[%emt 00:02:22]} 31. Bb5 {[%clk 00:18:30]} {[%emt 00:00:49]} Rc8
{[%clk 00:07:55]} {[%emt 00:01:21]} 32. c4 {[%clk 00:15:10]} {[%emt 00:03:30]}
Rh3 {[%clk 00:07:07]} {[%emt 00:00:57]} 33. Re5 {[%clk 00:14:25]} {[%emt
00:00:55]} Kc5 {[%clk 00:03:34]} {[%emt 00:03:43]} 34. Rde4 {[%clk 00:14:08]}
{[%emt 00:00:27]} Kd6 {[%clk 00:03:26]} {[%emt 00:00:18]} 35. Re3 {[%clk
00:10:09]} {[%emt 00:04:09]} Rxe3 {[%clk 00:03:23]} {[%emt 00:00:13]} 36. Rxe3
{[%clk 00:10:17]} {[%emt 00:00:03]} d4 {[%clk 00:02:32]} {[%emt 00:01:00]} 37.
Re2 {[%clk 00:08:46]} {[%emt 00:01:40]} Rh8 {[%clk 00:01:41]} {[%emt 00:01:02]}
38. Rd2 {[%clk 00:07:48]} {[%emt 00:01:08]} Kc5 {[%clk 00:01:03]} {[%emt
00:00:48]} 39. Ka3 {[%clk 00:07:22]} {[%emt 00:00:36]} Rh3 {[%clk 00:01:00]}
{[%emt 00:00:13]} 40. Be8 {[%clk 00:07:28]} {[%emt 00:00:04]} d3 {[%clk
00:00:53]} {[%emt 00:00:16]} 41. Bxf7 {[%clk 00:06:25]} {[%emt 00:01:14]} Kd4
{[%clk 00:01:03]} 42. Bxg6 {[%clk 00:05:59]} {[%emt 00:00:36]} Kc3 {[%clk
00:00:41]} {[%emt 00:00:32]} 43. Rxd3 {[%clk 00:06:07]} {[%emt 00:00:01]} Rxd3
{[%clk 00:00:50]} {[%emt 00:00:02]} 44. Bxd3 {[%clk 00:06:16]} {[%emt
00:00:01]} Kxd3 {[%clk 00:00:59]} {[%emt 00:00:02]} 45. g6 {[%clk 00:06:24]}
{[%emt 00:00:01]} Be4 {[%clk 00:01:05]} {[%emt 00:00:04]} 46. g7 {[%clk
00:06:33]} {[%emt 00:00:01]} Bh7 {[%clk 00:01:14]} 47. a5 {[%clk 00:06:31]}
{[%emt 00:00:12]} 1-0

[Event "FIDE U16 Olympiad_boards_81-124"]
[Site "Eindhoven, Netherlands"]
[Date "2023.08.14"]
[Round "3.34"]
[White "Poon, Pak Yu"]
[Black "Strong, Davida"]
[Result "1-0"]
[TimeControl "45min+10sec"]
[WhiteElo "1268"]
[BlackElo "1379"]

1. e4 {[%clk 00:45:19]} {[%emt 00:00:01]} e6 {[%clk 00:45:19]} {[%emt
00:00:01]} 2. d4 {[%clk 00:45:27]} {[%emt 00:00:02]} d5 {[%clk 00:45:28]}
{[%emt 00:00:01]} 3. e5 {[%clk 00:45:36]} {[%emt 00:00:01]} c5 {[%clk
00:45:36]} {[%emt 00:00:01]} 4. c3 {[%clk 00:45:45]} {[%emt 00:00:02]} Nc6
{[%clk 00:45:45]} {[%emt 00:00:01]} 5. Nf3 {[%clk 00:45:54]} {[%emt 00:00:02]}
cxd4 {[%clk 00:45:53]} {[%emt 00:00:01]} 6. cxd4 {[%clk 00:46:02]} {[%emt
00:00:02]} Nge7 {[%clk 00:46:01]} {[%emt 00:00:02]} 7. Bd3 {[%clk 00:45:55]}
{[%emt 00:00:17]} Qb6 {[%clk 00:45:51]} {[%emt 00:00:19]} 8. Nc3 {[%clk
00:45:58]} {[%emt 00:00:08]} Bd7 {[%clk 00:45:33]} {[%emt 00:00:28]} 9. Be3
{[%clk 00:45:58]} {[%emt 00:00:10]} Ng6 {[%clk 00:43:10]} {[%emt 00:02:33]} 10.
O-O {[%clk 00:45:47]} {[%emt 00:00:21]} a6 {[%clk 00:39:17]} {[%emt 00:04:03]}
11. h4 {[%clk 00:39:28]} {[%emt 00:06:29]} Rc8 {[%clk 00:35:21]} {[%emt
00:04:05]} 12. h5 {[%clk 00:39:17]} {[%emt 00:00:22]} Nge7 {[%clk 00:35:27]}
{[%emt 00:00:04]} 13. Ng5 {[%clk 00:34:44]} {[%emt 00:04:43]} h6 {[%clk
00:32:24]} {[%emt 00:03:14]} 14. Nh7 {[%clk 00:31:45]} {[%emt 00:03:08]} Na5
{[%clk 00:28:15]} {[%emt 00:04:19]} 15. Nxf8 {[%clk 00:27:14]} {[%emt
00:04:41]} Kxf8 {[%clk 00:28:23]} {[%emt 00:00:02]} 16. Qf3 {[%clk 00:27:01]}
{[%emt 00:00:23]} Nc4 {[%clk 00:25:08]} {[%emt 00:03:24]} 17. Ne2 {[%clk
00:22:43]} {[%emt 00:04:28]} Nc6 {[%clk 00:21:00]} {[%emt 00:04:18]} 18. Bxc4
{[%clk 00:21:28]} {[%emt 00:01:26]} dxc4 {[%clk 00:21:08]} {[%emt 00:00:02]} 19.
d5 {[%clk 00:21:35]} {[%emt 00:00:03]} Qxb2 {[%clk 00:18:37]} {[%emt 00:02:41]}
20. dxc6 {[%clk 00:20:54]} {[%emt 00:00:51]} Bxc6 {[%clk 00:18:44]} {[%emt
00:00:03]} 21. Qg4 {[%clk 00:21:02]} {[%emt 00:00:01]} Qxe5 {[%clk 00:18:17]}
{[%emt 00:00:38]} 22. Nd4 {[%clk 00:14:53]} {[%emt 00:06:19]} Qe4 {[%clk
00:14:55]} {[%emt 00:03:32]} 23. Qg3 {[%clk 00:13:03]} {[%emt 00:02:00]} Kg8
{[%clk 00:11:38]} {[%emt 00:03:27]} 24. Nxc6 {[%clk 00:12:28]} {[%emt
00:00:45]} Qxc6 {[%clk 00:10:46]} {[%emt 00:01:01]} 25. Bd4 {[%clk 00:12:31]}
{[%emt 00:00:09]} Rh7 {[%clk 00:10:25]} {[%emt 00:00:31]} 26. Rad1 {[%clk
00:12:27]} {[%emt 00:00:13]} Qb5 {[%clk 00:09:03]} {[%emt 00:01:32]} 27. Bc3
{[%clk 00:10:01]} {[%emt 00:02:36]} Re8 {[%clk 00:06:52]} {[%emt 00:02:20]} 28.
Qc7 {[%clk 00:08:40]} {[%emt 00:01:32]} g6 {[%clk 00:04:47]} {[%emt 00:02:15]}
29. Rd7 {[%clk 00:07:59]} {[%emt 00:00:52]} gxh5 {[%clk 00:02:52]} {[%emt
00:02:04]} 30. Rfd1 {[%clk 00:07:25]} {[%emt 00:00:43]} e5 {[%clk 00:01:56]}
{[%emt 00:01:06]} 31. Re7 {[%clk 00:06:52]} {[%emt 00:00:43]} Rxe7 {[%clk
00:01:09]} {[%emt 00:00:58]} 32. Qxe7 {[%clk 00:06:57]} {[%emt 00:00:05]} Kg7
{[%clk 00:00:15]} {[%emt 00:01:04]} 33. Bxe5+ {[%clk 00:06:12]} {[%emt
00:00:55]} Kg8 {[%clk 00:00:15]} {[%emt 00:00:09]} 34. Rd8+ {[%clk 00:06:19]}
{[%emt 00:00:03]} Qe8 {[%clk 00:00:22]} {[%emt 00:00:04]} 35. Qxe8# {[%clk
00:06:26]} {[%emt 00:00:03]} 1-0

[Event "FIDE U16 Olympiad_boards_81-124"]
[Site "Eindhoven, Netherlands"]
[Date "2023.08.14"]
[Round "3.35"]
[White "Govender, Keniesha"]
[Black "Li, Joy Ching"]
[Result "0-1"]
[TimeControl "45min+10sec"]
[WhiteElo "1210"]
[BlackElo "1401"]

1. d4 {[%clk 00:45:17]} {[%emt 00:00:02]} Nf6 {[%clk 00:45:19]} {[%emt
00:00:02]} 2. Nf3 {[%clk 00:45:25]} {[%emt 00:00:02]} g6 {[%clk 00:45:27]}
{[%emt 00:00:03]} 3. g3 {[%clk 00:45:31]} {[%emt 00:00:03]} Bg7 {[%clk
00:45:35]} {[%emt 00:00:02]} 4. Bg2 {[%clk 00:45:37]} {[%emt 00:00:04]} d5
{[%clk 00:45:42]} {[%emt 00:00:03]} 5. c4 {[%clk 00:45:37]} {[%emt 00:00:09]}
c6 {[%clk 00:45:48]} {[%emt 00:00:05]} 6. O-O {[%clk 00:45:42]} {[%emt
00:00:05]} O-O {[%clk 00:45:54]} {[%emt 00:00:03]} 7. Nbd2 {[%clk 00:44:54]}
{[%emt 00:00:58]} Bf5 {[%clk 00:44:37]} {[%emt 00:01:26]} 8. b3 {[%clk
00:43:41]} {[%emt 00:01:24]} Ne4 {[%clk 00:42:29]} {[%emt 00:02:19]} 9. Bb2
{[%clk 00:41:10]} {[%emt 00:02:41]} a5 {[%clk 00:38:06]} {[%emt 00:04:33]} 10.
Nh4 {[%clk 00:37:46]} {[%emt 00:03:34]} Nxd2 {[%clk 00:36:50]} {[%emt
00:01:26]} 11. Qxd2 {[%clk 00:37:51]} {[%emt 00:00:05]} Be6 {[%clk 00:36:21]}
{[%emt 00:00:39]} 12. Rac1 {[%clk 00:29:27]} {[%emt 00:08:34]} a4 {[%clk
00:34:34]} {[%emt 00:01:57]} 13. Rfe1 {[%clk 00:25:38]} {[%emt 00:03:58]} Na6
{[%clk 00:31:24]} {[%emt 00:03:20]} 14. e4 {[%clk 00:23:18]} {[%emt 00:02:30]}
Nc7 {[%clk 00:30:46]} {[%emt 00:00:48]} 15. Qc2 {[%clk 00:14:43]} {[%emt
00:08:45]} a3 {[%clk 00:28:58]} {[%emt 00:01:58]} 16. Ba1 {[%clk 00:12:41]}
{[%emt 00:02:13]} Rc8 {[%clk 00:25:48]} {[%emt 00:03:20]} 17. Qd2 {[%clk
00:08:28]} {[%emt 00:04:24]} dxc4 {[%clk 00:19:58]} {[%emt 00:05:59]} 18. bxc4
{[%clk 00:07:41]} {[%emt 00:00:57]} b5 {[%clk 00:18:54]} {[%emt 00:01:14]} 19.
cxb5 {[%clk 00:02:17]} {[%emt 00:05:33]} Nxb5 {[%clk 00:18:45]} {[%emt
00:00:20]} 20. d5 {[%clk 00:01:02]} {[%emt 00:01:26]} Bxa1 {[%clk 00:18:19]}
{[%emt 00:00:35]} 21. Rxa1 {[%clk 00:01:11]} {[%emt 00:00:01]} cxd5 {[%clk
00:16:41]} {[%emt 00:01:48]} 22. exd5 {[%clk 00:01:20]} {[%emt 00:00:01]} Nc3
{[%clk 00:15:33]} {[%emt 00:01:18]} 23. Qe3 {[%clk 00:01:06]} {[%emt 00:00:24]}
Bxd5 {[%clk 00:13:50]} {[%emt 00:01:53]} 24. Bxd5 {[%clk 00:01:04]} {[%emt
00:00:11]} Qxd5 {[%clk 00:12:37]} {[%emt 00:01:24]} 25. Qxe7 {[%clk 00:00:39]}
{[%emt 00:00:35]} Nxa2 {[%clk 00:09:55]} {[%emt 00:02:51]} 26. Qxa3 {[%clk
00:00:24]} {[%emt 00:00:25]} Rc2 {[%clk 00:09:52]} {[%emt 00:00:13]} 27. Qf3
{[%clk 00:00:14]} {[%emt 00:00:20]} Qc5 {[%clk 00:08:45]} {[%emt 00:01:17]} 28.
Ng2 {[%clk 00:00:13]} {[%emt 00:00:12]} Nb4 {[%clk 00:08:26]} {[%emt 00:00:29]}
29. Ne3 {[%clk 00:00:12]} {[%emt 00:00:11]} Rc3 {[%clk 00:08:14]} {[%emt
00:00:21]} 30. Qg2 {[%clk 00:00:14]} {[%emt 00:00:08]} Kg7 {[%clk 00:06:49]}
{[%emt 00:01:35]} 31. Rec1 {[%clk 00:00:13]} {[%emt 00:00:44]} Rxc1+ {[%clk
00:06:16]} {[%emt 00:00:18]} 32. Rxc1 {[%clk 00:00:22]} {[%emt 00:00:01]} Qxc1+
{[%clk 00:06:23]} 33. Qf1 {[%clk 00:00:12]} {[%emt 00:00:24]} Qxf1+ {[%clk
00:06:24]} {[%emt 00:00:09]} 34. Kxf1 {[%clk 00:00:18]} {[%emt 00:00:04]} Rd8
{[%clk 00:06:27]} {[%emt 00:00:06]} 35. Ke2 {[%clk 00:00:25]} {[%emt 00:00:03]}
f5 {[%clk 00:06:33]} {[%emt 00:00:04]} 36. f4 {[%clk 00:00:21]} {[%emt
00:00:15]} Kf6 {[%clk 00:06:34]} {[%emt 00:00:09]} 37. h3 {[%clk 00:00:18]}
{[%emt 00:00:13]} Nd5 {[%clk 00:06:27]} {[%emt 00:00:16]} 38. Nc4 {[%clk
00:00:17]} {[%emt 00:00:11]} Nc3+ {[%clk 00:06:32]} {[%emt 00:00:05]} 39. Kf3
{[%clk 00:00:17]} {[%emt 00:00:10]} Rd3+ {[%clk 00:06:34]} {[%emt 00:00:08]} 40.
Kf2 {[%clk 00:00:22]} {[%emt 00:00:05]} Ne4+ {[%clk 00:06:42]} {[%emt
00:00:03]} 41. Kg2 {[%clk 00:00:21]} {[%emt 00:00:11]} Rxg3+ {[%clk 00:06:48]}
{[%emt 00:00:03]} 42. Kh2 {[%clk 00:00:27]} {[%emt 00:00:03]} Rf3 {[%clk
00:06:50]} {[%emt 00:00:08]} 43. Nb6 {[%clk 00:00:17]} {[%emt 00:00:22]} Nc3
{[%clk 00:06:30]} {[%emt 00:00:29]} 44. Nd7+ {[%clk 00:00:13]} {[%emt
00:00:14]} Ke7 {[%clk 00:06:22]} {[%emt 00:00:18]} 45. Ne5 {[%clk 00:00:14]}
{[%emt 00:00:09]} Rxf4 {[%clk 00:06:19]} {[%emt 00:00:14]} 46. Nd3 {[%clk
00:00:15]} {[%emt 00:00:03]} Re4 {[%clk 00:06:17]} {[%emt 00:00:16]} 47. Nc5
{[%clk 00:00:16]} {[%emt 00:00:10]} Re2+ {[%clk 00:06:23]} {[%emt 00:00:05]} 48.
Kg3 {[%clk 00:00:14]} {[%emt 00:00:12]} Ne4+ {[%clk 00:06:31]} {[%emt
00:00:01]} 49. Nxe4 {[%clk 00:00:23]} {[%emt 00:00:02]} Rxe4 {[%clk 00:06:38]}
{[%emt 00:00:02]} 0-1